{"text_format":"1","workbook":"xlsx","n_sheets":5,"sheets":["Videos","Video_List","TD_FILTER","HTML","YouTube_Keys"],"not_rendered":{"charts":0,"images":4,"macros":1,"external_links":0,"defined_names":41,"comments":0,"pivot_tables":1},"unopened":[],"bounds":{"document_bytes":16777216,"sheet_cells":100000,"rows_first":2000,"rows_last":500,"rows_between":2000,"halvings":0,"cell_chars":16384,"cell_head_chars":4096},"cells_cut":0,"cells_raw":0,"read":"whole","date_system":"1900"}

{"sheet":"Videos","index":0,"n_rows":92,"n_cols":17,"rows_kept":92,"cut":false,"hidden":false,"merged":[[91,14,98,14],[91,15,98,15],[91,10,98,10],[91,1,98,4],[91,11,98,11],[91,12,98,12],[91,13,98,13],[43,3,43,9],[42,3,42,9],[45,3,45,5],[91,0,98,0],[91,5,98,5],[91,6,98,6],[48,3,48,5],[46,3,46,5],[47,3,47,5],[49,3,49,5],[91,7,98,7],[91,8,98,8],[91,9,98,9]]}
["c",100,null,null,null,9,3,"q",4,":","X",{"$f":"INDEX(L:L,VideoSelected+40) & \"\"","v":"Pedro Wave - Mapa con banderas de la UE / EU Flags Map"},{"$f":"INDEX(M:M,VideoSelected+40) & \"\"","v":"CPTUGtEyCBQ"},{"$f":"INDEX(N:N,VideoSelected+40) & \"\"","v":""},{"$f":"INDEX(O:O,VideoSelected+40) & \"\"","v":"*****"},"Ù",1]
[]
[null,"fff"]
[]
[]
[]
[]
[]
[]
[]
[]
[]
[]
[]
[]
[]
[]
[]
[]
[]
[]
[]
[]
[]
[]
[]
[]
[]
[]
[]
[]
[]
[]
[]
[]
[]
[]
[]
[]
["s","<-- Clic para ayuda con el visor de vídeos",null,null,null,null,null,null,null,null,null,"Título","Id","Web","Puntos"]
["Teclas","<-- Clic para ayuda con las teclas de YouTube ",null,null,null,null,null,null,null,null,null,{"$f":"TD_FILTER!A2 & \"\"","v":"Pedro Wave - Mapa con banderas de la UE / EU Flags Map"},{"$f":"TD_FILTER!B2 & \"\"","v":"CPTUGtEyCBQ"},{"$f":"TD_FILTER!C2 & \"\"","v":""},{"$f":"TD_FILTER!D2 & \"\"","v":"*****"}]
[null,null,null,null,null,null,null,null,null,null,null,{"$f":"TD_FILTER!A3 & \"\"","v":"EngineeringFun - 3D Animated Roller Coaster Model"},{"$f":"TD_FILTER!B3 & \"\"","v":"IrVA1BBHFHw"},{"$f":"TD_FILTER!C3 & \"\"","v":""},{"$f":"TD_FILTER!D3 & \"\"","v":"*****"}]
[null,"Autor:",null,"Pedro Wave for Excel Guys",null,null,null,null,null,null,null,{"$f":"TD_FILTER!A4 & \"\"","v":"Chandoo - Top 10 Excel formulas for IT people"},{"$f":"TD_FILTER!B4 & \"\"","v":"P7w6JeNS_SA"},{"$f":"TD_FILTER!C4 & \"\"","v":""},{"$f":"TD_FILTER!D4 & \"\"","v":"*****"}]
[null,"Blog:",null,"https://pedrowave.blogspot.com/",null,null,null,null,null,null,null,{"$f":"TD_FILTER!A5 & \"\"","v":"Contextures - Show Matching Items in Excel List"},{"$f":"TD_FILTER!B5 & \"\"","v":"d_5RQiWJDNs"},{"$f":"TD_FILTER!C5 & \"\"","v":""},{"$f":"TD_FILTER!D5 & \"\"","v":"****"}]
[null,null,null,null,null,null,null,null,null,null,null,{"$f":"TD_FILTER!A6 & \"\"","v":"ExcelIsFun - List Student Last Access for Class Web Site"},{"$f":"TD_FILTER!B6 & \"\"","v":"Oqz_nQhmxFM"},{"$f":"TD_FILTER!C6 & \"\"","v":""},{"$f":"TD_FILTER!D6 & \"\"","v":"****"}]
[null,null,null,"FILTROS",null,null,null,null,null,null,null,{"$f":"TD_FILTER!A7 & \"\"","v":"TeachExcel - Excel Macro Class 1"},{"$f":"TD_FILTER!B7 & \"\"","v":"NMzSIRQ8qMA"},{"$f":"TD_FILTER!C7 & \"\"","v":""},{"$f":"TD_FILTER!D7 & \"\"","v":"****"}]
[null,"Titulo:",null,null,null,null,null,null,null,null,null,{"$f":"TD_FILTER!A8 & \"\"","v":"Excel TV - How To Master Monte Carlo Simulation"},{"$f":"TD_FILTER!B8 & \"\"","v":"Nb63swYetzY"},{"$f":"TD_FILTER!C8 & \"\"","v":""},{"$f":"TD_FILTER!D8 & \"\"","v":"*****"}]
[null,"Web:",null,null,null,null,null,null,null,null,null,{"$f":"TD_FILTER!A9 & \"\"","v":"Excel For Freelancers - How To Create A Point Of Sale (POS)"},{"$f":"TD_FILTER!B9 & \"\"","v":"C-jw10s8esw"},{"$f":"TD_FILTER!C9 & \"\"","v":""},{"$f":"TD_FILTER!D9 & \"\"","v":"***"}]
[null,"Puntos:",null,null,null,null,null,null,null,null,null,{"$f":"TD_FILTER!A10 & \"\"","v":"EXCELeINFO - Cómo crear KPIs en Power Pivot y DAX"},{"$f":"TD_FILTER!B10 & \"\"","v":"QLqt8tKxTfY"},{"$f":"TD_FILTER!C10 & \"\"","v":""},{"$f":"TD_FILTER!D10 & \"\"","v":"****"}]
[null,"Clase:",null,"Excel",null,null,null,null,null,null,null,{"$f":"TD_FILTER!A11 & \"\"","v":"Mynda Treacy - Embed Excel Dashboards in PowerPoint"},{"$f":"TD_FILTER!B11 & \"\"","v":"WgpfiVGs6qc"},{"$f":"TD_FILTER!C11 & \"\"","v":""},{"$f":"TD_FILTER!D11 & \"\"","v":"****"}]
[null,null,null,null,null,null,null,null,null,null,null,{"$f":"TD_FILTER!A12 & \"\"","v":"Dostin Hurtado - Curso de Excel Avanzado"},{"$f":"TD_FILTER!B12 & \"\"","v":"rFt3qJWkeQs"},{"$f":"TD_FILTER!C12 & \"\"","v":""},{"$f":"TD_FILTER!D12 & \"\"","v":"****"}]
[null,null,null,null,null,null,null,null,null,null,null,{"$f":"TD_FILTER!A13 & \"\"","v":"SMARTpro Academy - Avance GRÁFICO del proyecto"},{"$f":"TD_FILTER!B13 & \"\"","v":"eJS6rvI2x84"},{"$f":"TD_FILTER!C13 & \"\"","v":""},{"$f":"TD_FILTER!D13 & \"\"","v":"*****"}]
[null,null,null,null,null,null,null,null,null,null,null,{"$f":"TD_FILTER!A14 & \"\"","v":"José Santos - Curso Tablas Dinámicas en Excel"},{"$f":"TD_FILTER!B14 & \"\"","v":"Pj1gcZg5diA"},{"$f":"TD_FILTER!C14 & \"\"","v":""},{"$f":"TD_FILTER!D14 & \"\"","v":"****"}]
[null,null,null,null,null,null,null,null,null,null,null,{"$f":"TD_FILTER!A15 & \"\"","v":"Leila Gharani - How to Calculate Hours Worked (Power Query)"},{"$f":"TD_FILTER!B15 & \"\"","v":"Dbv2k8j6Zl4"},{"$f":"TD_FILTER!C15 & \"\"","v":""},{"$f":"TD_FILTER!D15 & \"\"","v":"*****"}]
[null,null,null,null,null,null,null,null,null,null,null,{"$f":"TD_FILTER!A16 & \"\"","v":""},{"$f":"TD_FILTER!B16 & \"\"","v":""},{"$f":"TD_FILTER!C16 & \"\"","v":""},{"$f":"TD_FILTER!D16 & \"\"","v":""}]
[null,null,null,null,null,null,null,null,null,null,null,{"$f":"TD_FILTER!A17 & \"\"","v":""},{"$f":"TD_FILTER!B17 & \"\"","v":""},{"$f":"TD_FILTER!C17 & \"\"","v":""},{"$f":"TD_FILTER!D17 & \"\"","v":""}]
[null,null,null,null,null,null,null,null,null,null,null,{"$f":"TD_FILTER!A18 & \"\"","v":""},{"$f":"TD_FILTER!B18 & \"\"","v":""},{"$f":"TD_FILTER!C18 & \"\"","v":""},{"$f":"TD_FILTER!D18 & \"\"","v":""}]
[null,null,null,null,null,null,null,null,null,null,null,{"$f":"TD_FILTER!A19 & \"\"","v":""},{"$f":"TD_FILTER!B19 & \"\"","v":""},{"$f":"TD_FILTER!C19 & \"\"","v":""},{"$f":"TD_FILTER!D19 & \"\"","v":""}]
[null,null,null,null,null,null,null,null,null,null,null,{"$f":"TD_FILTER!A20 & \"\"","v":""},{"$f":"TD_FILTER!B20 & \"\"","v":""},{"$f":"TD_FILTER!C20 & \"\"","v":""},{"$f":"TD_FILTER!D20 & \"\"","v":""}]
[null,null,null,null,null,null,null,null,null,null,null,{"$f":"TD_FILTER!A21 & \"\"","v":""},{"$f":"TD_FILTER!B21 & \"\"","v":""},{"$f":"TD_FILTER!C21 & \"\"","v":""},{"$f":"TD_FILTER!D21 & \"\"","v":""}]
[null,null,null,null,null,null,null,null,null,null,null,{"$f":"TD_FILTER!A22 & \"\"","v":""},{"$f":"TD_FILTER!B22 & \"\"","v":""},{"$f":"TD_FILTER!C22 & \"\"","v":""},{"$f":"TD_FILTER!D22 & \"\"","v":""}]
[null,null,null,null,null,null,null,null,null,null,null,{"$f":"TD_FILTER!A23 & \"\"","v":""},{"$f":"TD_FILTER!B23 & \"\"","v":""},{"$f":"TD_FILTER!C23 & \"\"","v":""},{"$f":"TD_FILTER!D23 & \"\"","v":""}]
[null,null,null,null,null,null,null,null,null,null,null,{"$f":"TD_FILTER!A24 & \"\"","v":""},{"$f":"TD_FILTER!B24 & \"\"","v":""},{"$f":"TD_FILTER!C24 & \"\"","v":""},{"$f":"TD_FILTER!D24 & \"\"","v":""}]
[null,null,null,null,null,null,null,null,null,null,null,{"$f":"TD_FILTER!A25 & \"\"","v":""},{"$f":"TD_FILTER!B25 & \"\"","v":""},{"$f":"TD_FILTER!C25 & \"\"","v":""},{"$f":"TD_FILTER!D25 & \"\"","v":""}]
[null,null,null,null,null,null,null,null,null,null,null,{"$f":"TD_FILTER!A26 & \"\"","v":""},{"$f":"TD_FILTER!B26 & \"\"","v":""},{"$f":"TD_FILTER!C26 & \"\"","v":""},{"$f":"TD_FILTER!D26 & \"\"","v":""}]
[null,null,null,null,null,null,null,null,null,null,null,{"$f":"TD_FILTER!A27 & \"\"","v":""},{"$f":"TD_FILTER!B27 & \"\"","v":""},{"$f":"TD_FILTER!C27 & \"\"","v":""},{"$f":"TD_FILTER!D27 & \"\"","v":""}]
[null,null,null,null,null,null,null,null,null,null,null,{"$f":"TD_FILTER!A28 & \"\"","v":""},{"$f":"TD_FILTER!B28 & \"\"","v":""},{"$f":"TD_FILTER!C28 & \"\"","v":""},{"$f":"TD_FILTER!D28 & \"\"","v":""}]
[null,null,null,null,null,null,null,null,null,null,null,{"$f":"TD_FILTER!A29 & \"\"","v":""},{"$f":"TD_FILTER!B29 & \"\"","v":""},{"$f":"TD_FILTER!C29 & \"\"","v":""},{"$f":"TD_FILTER!D29 & \"\"","v":""}]
[null,null,null,null,null,null,null,null,null,null,null,{"$f":"TD_FILTER!A30 & \"\"","v":""},{"$f":"TD_FILTER!B30 & \"\"","v":""},{"$f":"TD_FILTER!C30 & \"\"","v":""},{"$f":"TD_FILTER!D30 & \"\"","v":""}]
[null,null,null,null,null,null,null,null,null,null,null,{"$f":"TD_FILTER!A31 & \"\"","v":""},{"$f":"TD_FILTER!B31 & \"\"","v":""},{"$f":"TD_FILTER!C31 & \"\"","v":""},{"$f":"TD_FILTER!D31 & \"\"","v":""}]
[null,null,null,null,null,null,null,null,null,null,null,{"$f":"TD_FILTER!A32 & \"\"","v":""},{"$f":"TD_FILTER!B32 & \"\"","v":""},{"$f":"TD_FILTER!C32 & \"\"","v":""},{"$f":"TD_FILTER!D32 & \"\"","v":""}]
[null,null,null,null,null,null,null,null,null,null,null,{"$f":"TD_FILTER!A33 & \"\"","v":""},{"$f":"TD_FILTER!B33 & \"\"","v":""},{"$f":"TD_FILTER!C33 & \"\"","v":""},{"$f":"TD_FILTER!D33 & \"\"","v":""}]
[null,null,null,null,null,null,null,null,null,null,null,{"$f":"TD_FILTER!A34 & \"\"","v":""},{"$f":"TD_FILTER!B34 & \"\"","v":""},{"$f":"TD_FILTER!C34 & \"\"","v":""},{"$f":"TD_FILTER!D34 & \"\"","v":""}]
[null,null,null,null,null,null,null,null,null,null,null,{"$f":"TD_FILTER!A35 & \"\"","v":""},{"$f":"TD_FILTER!B35 & \"\"","v":""},{"$f":"TD_FILTER!C35 & \"\"","v":""},{"$f":"TD_FILTER!D35 & \"\"","v":""}]
[null,null,null,null,null,null,null,null,null,null,null,{"$f":"TD_FILTER!A36 & \"\"","v":""},{"$f":"TD_FILTER!B36 & \"\"","v":""},{"$f":"TD_FILTER!C36 & \"\"","v":""},{"$f":"TD_FILTER!D36 & \"\"","v":""}]
[null,null,null,null,null,null,null,null,null,null,null,{"$f":"TD_FILTER!A37 & \"\"","v":""},{"$f":"TD_FILTER!B37 & \"\"","v":""},{"$f":"TD_FILTER!C37 & \"\"","v":""},{"$f":"TD_FILTER!D37 & \"\"","v":""}]
[null,null,null,null,null,null,null,null,null,null,null,{"$f":"TD_FILTER!A38 & \"\"","v":""},{"$f":"TD_FILTER!B38 & \"\"","v":""},{"$f":"TD_FILTER!C38 & \"\"","v":""},{"$f":"TD_FILTER!D38 & \"\"","v":""}]
[null,null,null,null,null,null,null,null,null,null,null,{"$f":"TD_FILTER!A39 & \"\"","v":""},{"$f":"TD_FILTER!B39 & \"\"","v":""},{"$f":"TD_FILTER!C39 & \"\"","v":""},{"$f":"TD_FILTER!D39 & \"\"","v":""}]
[null,null,null,null,null,null,null,null,null,null,null,{"$f":"TD_FILTER!A40 & \"\"","v":""},{"$f":"TD_FILTER!B40 & \"\"","v":""},{"$f":"TD_FILTER!C40 & \"\"","v":""},{"$f":"TD_FILTER!D40 & \"\"","v":""}]
[null,null,null,null,null,null,null,null,null,null,null,{"$f":"TD_FILTER!A41 & \"\"","v":""},{"$f":"TD_FILTER!B41 & \"\"","v":""},{"$f":"TD_FILTER!C41 & \"\"","v":""},{"$f":"TD_FILTER!D41 & \"\"","v":""}]
[null,null,null,null,null,null,null,null,null,null,null,{"$f":"TD_FILTER!A42 & \"\"","v":""},{"$f":"TD_FILTER!B42 & \"\"","v":""},{"$f":"TD_FILTER!C42 & \"\"","v":""},{"$f":"TD_FILTER!D42 & \"\"","v":""}]
[null,null,null,null,null,null,null,null,null,null,null,{"$f":"TD_FILTER!A43 & \"\"","v":""},{"$f":"TD_FILTER!B43 & \"\"","v":""},{"$f":"TD_FILTER!C43 & \"\"","v":""},{"$f":"TD_FILTER!D43 & \"\"","v":""}]
[null,null,null,null,null,null,null,null,null,null,null,{"$f":"TD_FILTER!A44 & \"\"","v":""},{"$f":"TD_FILTER!B44 & \"\"","v":""},{"$f":"TD_FILTER!C44 & \"\"","v":""},{"$f":"TD_FILTER!D44 & \"\"","v":""}]
[null,null,null,null,null,null,null,null,null,null,null,{"$f":"TD_FILTER!A45 & \"\"","v":""},{"$f":"TD_FILTER!B45 & \"\"","v":""},{"$f":"TD_FILTER!C45 & \"\"","v":""},{"$f":"TD_FILTER!D45 & \"\"","v":""}]
[null,null,null,null,null,null,null,null,null,null,null,{"$f":"TD_FILTER!A46 & \"\"","v":""},{"$f":"TD_FILTER!B46 & \"\"","v":""},{"$f":"TD_FILTER!C46 & \"\"","v":""},{"$f":"TD_FILTER!D46 & \"\"","v":""}]
[null,null,null,null,null,null,null,null,null,null,null,{"$f":"TD_FILTER!A47 & \"\"","v":""},{"$f":"TD_FILTER!B47 & \"\"","v":""},{"$f":"TD_FILTER!C47 & \"\"","v":""},{"$f":"TD_FILTER!D47 & \"\"","v":""}]
[null,null,null,null,null,null,null,null,null,null,null,{"$f":"TD_FILTER!A48 & \"\"","v":""},{"$f":"TD_FILTER!B48 & \"\"","v":""},{"$f":"TD_FILTER!C48 & \"\"","v":""},{"$f":"TD_FILTER!D48 & \"\"","v":""}]
[null,null,null,null,null,null,null,null,null,null,null,{"$f":"TD_FILTER!A49 & \"\"","v":""},{"$f":"TD_FILTER!B49 & \"\"","v":""},{"$f":"TD_FILTER!C49 & \"\"","v":""},{"$f":"TD_FILTER!D49 & \"\"","v":""}]
[null,null,null,null,null,null,null,null,null,null,null,{"$f":"TD_FILTER!A50 & \"\"","v":""},{"$f":"TD_FILTER!B50 & \"\"","v":""},{"$f":"TD_FILTER!C50 & \"\"","v":""},{"$f":"TD_FILTER!D50 & \"\"","v":""}]
[null,null,null,null,null,null,null,null,null,null,null,{"$f":"TD_FILTER!A51 & \"\"","v":""},{"$f":"TD_FILTER!B51 & \"\"","v":""},{"$f":"TD_FILTER!C51 & \"\"","v":""},{"$f":"TD_FILTER!D51 & \"\"","v":""}]
[]
["Modo Ventana o Excel","Zoom de la ventana",null,null,null,"Vídeo primero","Vídeo anterior","Pausa/Normal/Bucle","Vídeo siguiente","Vídeo último","Altavoz YouTube","Titulo del vídeo","Id. Video YouTube","Página Web","Puntos del vídeo","Mostrar/Ocultar Título"]

{"sheet":"Video_List","index":1,"n_rows":27,"n_cols":5,"rows_kept":27,"cut":false,"hidden":false,"merged":[]}
["Título","Id","Web","Puntos","Clase"]
["Blog Pedro Wave for Excel Guys",null,"https://pedrowave.blogspot.com/","*****","Blog"]
["Blog Clearly and Simply",null,"https://www.clearlyandsimply.com/","*****","Blog"]
["YouTube",null,"https://www.youtube.com/","***","Web"]
["Britney Spears - Toxic (Official Video)","LOZuxwVk7TU",null,"*****","Musical"]
["Shakira - Can't Remember to Forget You ft. Rihanna","o3mP3mJDL2k",null,"****","Musical"]
["Dover - Serenade","6f-lmScnm3I",null,"****","Musical"]
["Taylor Swift - You Need To Calm Down","Dkk9gvTmCXY",null,"*****","Musical"]
["Roxette - The Look","LlVI7ZNiFlI",null,"***","Musical"]
["Spice Girls - Wannabe","gJLIiF15wjQ",null,"***","Musical"]
["Cher & Raquel Welch - I'm a Woman (The Cher Show, 1975)","kQjP2hXkQ1Y",null,"*","Vintage"]
["Famous Actress Marilyn Monroe Vintage",null,"https://www.xvideos.com/embedframe/26832235","*","Vintage"]
["Pedro Wave - Mapa con banderas de la UE / EU Flags Map","CPTUGtEyCBQ",null,"*****","Excel"]
["EngineeringFun - 3D Animated Roller Coaster Model","IrVA1BBHFHw",null,"*****","Excel"]
["Chandoo - Top 10 Excel formulas for IT people","P7w6JeNS_SA",null,"*****","Excel"]
["Contextures - Show Matching Items in Excel List","d_5RQiWJDNs",null,"****","Excel"]
["ExcelIsFun - List Student Last Access for Class Web Site","Oqz_nQhmxFM",null,"****","Excel"]
["TeachExcel - Excel Macro Class 1","NMzSIRQ8qMA",null,"****","Excel"]
["lasmatematicas.es - MATEMÁTICAS detrás del COVID-19","0IMB72QmXRs",null,"*****","Matemáticas"]
["Excel TV - How To Master Monte Carlo Simulation","Nb63swYetzY",null,"*****","Excel"]
["Excel For Freelancers - How To Create A Point Of Sale (POS)","C-jw10s8esw",null,"***","Excel"]
["EXCELeINFO - Cómo crear KPIs en Power Pivot y DAX","QLqt8tKxTfY",null,"****","Excel"]
["Mynda Treacy - Embed Excel Dashboards in PowerPoint","WgpfiVGs6qc",null,"****","Excel"]
["Dostin Hurtado - Curso de Excel Avanzado","rFt3qJWkeQs",null,"****","Excel"]
["SMARTpro Academy - Avance GRÁFICO del proyecto","eJS6rvI2x84",null,"*****","Excel"]
["José Santos - Curso Tablas Dinámicas en Excel","Pj1gcZg5diA",null,"****","Excel"]
["Leila Gharani - How to Calculate Hours Worked (Power Query)","Dbv2k8j6Zl4",null,"*****","Excel"]

{"sheet":"TD_FILTER","index":2,"n_rows":15,"n_cols":15,"rows_kept":15,"cut":false,"hidden":false,"merged":[]}
["Título","Id","Web","Puntos","Clase",null,null,"Título","Web","Puntos","Clase",null,null,"Clase","Cuenta de Título"]
["Pedro Wave - Mapa con banderas de la UE / EU Flags Map","CPTUGtEyCBQ",null,"*****","Excel",null,null,{"$f":"IF(Filtrar_Título=0,\"\",\"=*\" & Filtrar_Título & \"*\")","v":""},{"$f":"IF(Filtrar_Web=0,\"<>?*\",\"=*\" & Filtrar_Web & \"*\")","v":"<>?*"},{"$f":"IF(Filtrar_Puntos=0,\"\",\"=\" & SUBSTITUTE(Filtrar_Puntos,\"*\",\"~*\"))","v":""},{"$f":"IF(Filtrar_Clase=0,\"\",\"=*\" & Filtrar_Clase & \"*\")","v":"=*Excel*"},null,null,"Blog",2]
["EngineeringFun - 3D Animated Roller Coaster Model","IrVA1BBHFHw",null,"*****","Excel",null,null,{"$f":"IF(Filtrar_Título=0,\"\",\"=*\" & Filtrar_Título & \"*\")","v":""},{"$f":"IF(Filtrar_Web=0,\"=*\",\"=*\" & Filtrar_Web & \"*\")","v":"=*"},{"$f":"IF(Filtrar_Puntos=0,\"\",\"=\" & SUBSTITUTE(Filtrar_Puntos,\"*\",\"~*\"))","v":""},{"$f":"IF(Filtrar_Clase=0,\"\",\"=*\" & Filtrar_Clase & \"*\")","v":"=*Excel*"},null,null,"Excel",14]
["Chandoo - Top 10 Excel formulas for IT people","P7w6JeNS_SA",null,"*****","Excel",null,null,null,null,null,null,null,null,"Matemáticas",1]
["Contextures - Show Matching Items in Excel List","d_5RQiWJDNs",null,"****","Excel",null,null,null,null,null,null,null,null,"Musical",6]
["ExcelIsFun - List Student Last Access for Class Web Site","Oqz_nQhmxFM",null,"****","Excel",null,null,null,null,null,null,null,null,"Vintage",2]
["TeachExcel - Excel Macro Class 1","NMzSIRQ8qMA",null,"****","Excel",null,null,null,null,null,null,null,null,"Web",1]
["Excel TV - How To Master Monte Carlo Simulation","Nb63swYetzY",null,"*****","Excel"]
["Excel For Freelancers - How To Create A Point Of Sale (POS)","C-jw10s8esw",null,"***","Excel"]
["EXCELeINFO - Cómo crear KPIs en Power Pivot y DAX","QLqt8tKxTfY",null,"****","Excel"]
["Mynda Treacy - Embed Excel Dashboards in PowerPoint","WgpfiVGs6qc",null,"****","Excel"]
["Dostin Hurtado - Curso de Excel Avanzado","rFt3qJWkeQs",null,"****","Excel"]
["SMARTpro Academy - Avance GRÁFICO del proyecto","eJS6rvI2x84",null,"*****","Excel"]
["José Santos - Curso Tablas Dinámicas en Excel","Pj1gcZg5diA",null,"****","Excel"]
["Leila Gharani - How to Calculate Hours Worked (Power Query)","Dbv2k8j6Zl4",null,"*****","Excel"]

{"sheet":"HTML","index":3,"n_rows":12,"n_cols":2,"rows_kept":12,"cut":false,"hidden":false,"merged":[]}
["TAG","STRING"]
["WEB",{"$f":"SUBSTITUTE(SUBSTITUTE(SUBSTITUTE(SUBSTITUTE(SUBSTITUTE(SUBSTITUTE(SUBSTITUTE(SUBSTITUTE(SUBSTITUTE(SUBSTITUTE(\nHTML_DOC,\"sHEAD\",HTML_HEAD),\n\"sBODY\",HTML_BODY),\n\"sIFRAME\",IF(RIGHT(VideoWeb,4)=\".mp4\",HTML_VIDEO,HTML_IFRAME)),\n\"sSOURCE\",IF(VideoWeb=\"\",HTML_SOURCE,VideoWeb)),\n\"sVideoID\",VideoID),\n\"sVIDEO\",VideoWeb),\n\"sWidth\",HTML_ResolX),\n\"sHeight\",HTML_ResolY),\n\"sAutoplay\",HTML_Autoplay),\n\"sPlayList\",HTML_PlayList)","v":"<!DOCTYPE html><html><head><meta http-equiv=\"X-UA-Compatible\" content=\"IE=edge\" /></head><body scroll=\"yes\" style=\"overflow:hidden;margin:0px;padding:0px;border:0px\"><iframe width=\"1860\" height=\"1020\" src=\"https://www.youtube.com/embed/CPTUGtEyCBQ?autoplay=1&loop=1&playlist=IrVA1BBHFHw,P7w6JeNS_SA,d_5RQiWJDNs,Oqz_nQhmxFM,NMzSIRQ8qMA,Nb63swYetzY,C-jw10s8esw,QLqt8tKxTfY,WgpfiVGs6qc,rFt3qJWkeQs,eJS6rvI2x84,Pj1gcZg5diA,Dbv2k8j6Zl4\" frameborder=\"0\" allow=\"accelerometer; autoplay; encrypted-media; gyroscope; picture-in-picture\" allowfullscreen></iframe></body></html>"}]
["HTML","<!DOCTYPE html><html>sHEADsBODY</html>"]
["HEAD","<head><meta http-equiv=\"X-UA-Compatible\" content=\"IE=edge\" /></head>"]
["BODY","<body scroll=\"yes\" style=\"overflow:hidden;margin:0px;padding:0px;border:0px\">sIFRAME</body>"]
["IFRAME","<iframe width=\"sWidth\" height=\"sHeight\" src=\"sSOURCE\" frameborder=\"0\" allow=\"accelerometer; autoplay; encrypted-media; gyroscope; picture-in-picture\" allowfullscreen></iframe>"]
["SOURCE","https://www.youtube.com/embed/sVideoID?autoplay=sAutoplay&loop=1&playlist=sPlayList"]
["VIDEO","<video width=\"sWidth\" height=\"sHeight\" controls src=\"sVIDEO\" loop sAutoplay allowfullscreen frameborder=\"0\" scrolling=\"yes\"></video>"]
["autoplay",{"$f":"IF(VideoWeb=\"\",IF(VideoPause=\";\",0,1),IF(VideoPause=\";\",\"\",\"autoplay\"))","v":1}]
["resolX",{"$f":"(ResolPantalla(\"X\")-60)*VideoZoom/100","v":1860}]
["resolY",{"$f":"(ResolPantalla(\"Y\")-60)*VideoZoom/100","v":1020}]
["PlayList","IrVA1BBHFHw,P7w6JeNS_SA,d_5RQiWJDNs,Oqz_nQhmxFM,NMzSIRQ8qMA,Nb63swYetzY,C-jw10s8esw,QLqt8tKxTfY,WgpfiVGs6qc,rFt3qJWkeQs,eJS6rvI2x84,Pj1gcZg5diA,Dbv2k8j6Zl4"]

{"sheet":"YouTube_Keys","index":4,"n_rows":13,"n_cols":4,"rows_kept":13,"cut":false,"hidden":false,"merged":[]}
["Teclas","Función en YouTube","Teclas ","Función en YouTube "]
["Barra espaciadora","Reproducir o poner en pausa el vídeo cuando la barra de búsqueda está seleccionada. Activa un botón si está seleccionado.","I","Abrir el minirreproductor."]
["K","Reproducir o poner en pausa el vídeo en el reproductor.","Mayús + N","Ir al siguiente vídeo. Si utilizas esta combinación en una lista de reproducción, irás al siguiente vídeo de la lista. De lo contrario, irás al siguiente vídeo sugerido."]
["M","Silenciar o activar el sonido del vídeo.","Mayús + P","Ir al vídeo anterior. Esta combinación solo funciona con las listas de reproducción."]
["J","Retroceder 10 segundos en el vídeo.","Números del 1 al 9 en la barra de búsqueda (no en el teclado numérico)","Ir a un punto entre el 10 % y 90 % del vídeo."]
["L","Avanzar 10 segundos en el vídeo.","Número 0 en la barra de búsqueda (no en el teclado numérico)","Ir al principio del vídeo."]
[",","Avanzar al siguiente fotograma, mientras el vídeo está en pausa.","Número 1 o Mayús + 1","Desplazarse entre los encabezados H1."]
[".","Retroceder al fotograma anterior, mientras el vídeo está en pausa.","Flecha arriba o abajo en la barra de búsqueda","Subir o bajar el volumen un 5 %."]
[">","Acelerar la velocidad de reproducción del vídeo.","Flecha derecha o izquierda en la barra de búsqueda","Avanzar o retroceder 5 segundos en el vídeo."]
["<","Ralentizar la velocidad de reproducción del vídeo.","Principio o final en la barra de búsqueda","Buscar el principio o los últimos segundos del vídeo."]
["/","Ir al cuadro de búsqueda.","Tecla multimedia de reproducción/pausa en el teclado","Reproducir o poner en pausa el vídeo."]
["F","Habilitar el modo de pantalla completa. Si ya está activado, vuelve a pulsar la tecla F o Esc para salir.","Tecla multimedia de detención en el teclado","Parar el vídeo."]
["C","Habilitar los subtítulos (si están disponibles). Para ocultarlos, vuelve a pulsar la tecla C.","Tecla multimedia de siguiente pista en el teclado","Pasar al siguiente vídeo de una lista de reproducción."]